[Event "Titled Tuesday Blitz October 11 Late 2022"]
[White "Garmash, Aliona"]
[Black "Rodriguez Santiago, Jaime"]
[WhiteFideId "34127620"]
[BlackFideId "3100898"]
[WhiteElo "1980"]
[BlackElo "2025"]
[Result "1-0"]
[Round "07"]
[TimeControl "180+1"]
[Date "2022.10.12"]
[WhiteClock "0:00:05"]
[BlackClock "0:00:59"]

1. d4 {[%clk 0:03:00]}  d5 {[%clk 0:02:57]} 2. Nf3 {[%clk 0:02:59]}  Nf6 {[%clk 0:02:57]} 3. c4 {[%clk 0:03:00]}  c6 {[%clk 0:02:57]} 4. Nc3 {[%clk 0:03:00]}  e6 {[%clk 0:02:57]} 5. Bg5 {[%clk 0:03:00]}  Nbd7 {[%clk 0:02:57]} 6. e3 {[%clk 0:03:00]}  Qa5 {[%clk 0:02:57]} 7. Nd2 {[%clk 0:02:59]}  Bb4 {[%clk 0:02:56]} 8. Qc2 {[%clk 0:02:56]}  O-O {[%clk 0:02:54]} 9. Be2 {[%clk 0:02:51]}  dxc4 {[%clk 0:02:53]} 10. Bxf6 {[%clk 0:02:50]}  Nxf6 {[%clk 0:02:52]} 11. Nxc4 {[%clk 0:02:50]}  Qc7 {[%clk 0:02:50]} 12. O-O {[%clk 0:02:49]}  Rd8 {[%clk 0:02:42]} 13. Rfc1 {[%clk 0:02:46]}  Bf8 {[%clk 0:02:30]} 14. Rab1 {[%clk 0:02:39]}  a6 {[%clk 0:02:28]} 15. b4 {[%clk 0:02:39]}  b5 {[%clk 0:02:19]} 16. Ne5 {[%clk 0:02:34]}  Bb7 {[%clk 0:02:17]} 17. Bf3 {[%clk 0:02:20]}  Rac8 {[%clk 0:02:16]} 18. Nd3 {[%clk 0:02:14]}  a5 {[%clk 0:02:10]} 19. Nxb5 {[%clk 0:02:03]}  Qb6 {[%clk 0:02:01]} 20. Na3 {[%clk 0:01:58]}  axb4 {[%clk 0:01:59]} 21. Nc4 {[%clk 0:01:50]}  Qa7 {[%clk 0:01:56]} 22. Nxb4 {[%clk 0:01:47]}  c5 {[%clk 0:01:54]} 23. Bxb7 {[%clk 0:01:36]}  Qxb7 {[%clk 0:01:53]} 24. dxc5 {[%clk 0:01:07]}  Rxc5 {[%clk 0:01:49]} 25. Nd3 {[%clk 0:01:03]}  Rb5 {[%clk 0:01:45]} 26. a4 {[%clk 0:00:45]}  Rxb1 {[%clk 0:01:44]} 27. Rxb1 {[%clk 0:00:45]}  Qa6 {[%clk 0:01:41]} 28. Nde5 {[%clk 0:00:37]}  Nd5 {[%clk 0:01:39]} 29. a5 {[%clk 0:00:21]}  Rc8 {[%clk 0:01:33]} 30. e4 {[%clk 0:00:16]}  Nb4 {[%clk 0:01:29]} 31. Qa4 {[%clk 0:00:14]}  f6 {[%clk 0:01:21]} 32. Nb6 {[%clk 0:00:13]}  Rc2 {[%clk 0:01:03]} 33. Nf3 {[%clk 0:00:11]}  Qe2 {[%clk 0:01:02]} 34. Rf1 {[%clk 0:00:09]}  Bc5 {[%clk 0:01:02]} 35. h3 {[%clk 0:00:07]}  Bxf2+ {[%clk 0:01:01]} 36. Kh2 {[%clk 0:00:07]}  Qxf1 {[%clk 0:00:59]} 37. Qe8# {[%clk 0:00:05]} 1-0


[Site "https://www.chess.com"]

[Event "Titled Tuesday Blitz October 11 Late 2022"]
[White "Girel, Joseph"]
[Black "Domingo Nunez, Ruben"]
[WhiteFideId "36033561"]
[BlackFideId "22245570"]
[WhiteElo "2281"]
[BlackElo "2406"]
[Result "1-0"]
[Round "07"]
[TimeControl "180+1"]
[Date "2022.10.11"]
[WhiteClock "0:01:06"]
[BlackClock "0:00:03"]

1. d4 {[%clk 0:03:00]}  g6 {[%clk 0:02:59]} 2. c4 {[%clk 0:03:01]}  Bg7 {[%clk 0:02:59]} 3. Nf3 {[%clk 0:03:01]}  d6 {[%clk 0:03:00]} 4. g3 {[%clk 0:03:02]}  Nd7 {[%clk 0:03:01]} 5. Bg2 {[%clk 0:03:02]}  Ngf6 {[%clk 0:03:01]} 6. O-O {[%clk 0:03:02]}  O-O {[%clk 0:03:02]} 7. Nc3 {[%clk 0:03:03]}  c5 {[%clk 0:03:03]} 8. b3 {[%clk 0:03:00]}  Rb8 {[%clk 0:03:03]} 9. Bb2 {[%clk 0:03:01]}  a6 {[%clk 0:03:04]} 10. a4 {[%clk 0:03:00]}  b6 {[%clk 0:03:04]} 11. d5 {[%clk 0:02:59]}  Ne8 {[%clk 0:03:04]} 12. e4 {[%clk 0:02:59]}  b5 {[%clk 0:03:04]} 13. axb5 {[%clk 0:02:56]}  axb5 {[%clk 0:03:05]} 14. Qc2 {[%clk 0:02:45]}  bxc4 {[%clk 0:03:03]} 15. bxc4 {[%clk 0:02:46]}  Qb6 {[%clk 0:02:30]} 16. Rfb1 {[%clk 0:02:44]}  Qb3 {[%clk 0:02:29]} 17. Qxb3 {[%clk 0:02:08]}  Rxb3 {[%clk 0:02:29]} 18. Nd1 {[%clk 0:02:08]}  Nef6 {[%clk 0:01:53]} 19. Nd2 {[%clk 0:02:06]}  Rd3 {[%clk 0:01:50]} 20. Bc3 {[%clk 0:02:05]}  Ng4 {[%clk 0:01:47]} 21. Bxg7 {[%clk 0:01:55]}  Kxg7 {[%clk 0:01:48]} 22. Rb2 {[%clk 0:01:53]}  e6 {[%clk 0:01:24]} 23. Bf1 {[%clk 0:01:45]}  Rd4 {[%clk 0:01:25]} 24. Nb3 {[%clk 0:01:41]}  Rxe4 {[%clk 0:00:46]} 25. f3 {[%clk 0:01:41]}  Re1 {[%clk 0:00:46]} 26. fxg4 {[%clk 0:01:38]}  exd5 {[%clk 0:00:46]} 27. cxd5 {[%clk 0:01:36]}  Ne5 {[%clk 0:00:47]} 28. Kf2 {[%clk 0:01:32]}  Nf3 {[%clk 0:00:21]} 29. Kxf3 {[%clk 0:01:23]}  Rxf1+ {[%clk 0:00:21]} 30. Nf2 {[%clk 0:01:23]}  Rxa1 {[%clk 0:00:20]} 31. Nxa1 {[%clk 0:01:24]}  f5 {[%clk 0:00:16]} 32. g5 {[%clk 0:01:24]}  Ba6 {[%clk 0:00:07]} 33. Nc2 {[%clk 0:01:22]}  Bc4 {[%clk 0:00:07]} 34. Ne3 {[%clk 0:01:22]}  Ba6 {[%clk 0:00:04]} 35. Rb6 {[%clk 0:01:22]}  Ra8 {[%clk 0:00:02]} 36. Rxd6 {[%clk 0:01:21]}  Bc8 {[%clk 0:00:02]} 37. Rc6 {[%clk 0:01:21]}  c4 {[%clk 0:00:02]} 38. Rc7+ {[%clk 0:01:21]}  Kg8 {[%clk 0:00:02]} 39. Nxc4 {[%clk 0:01:21]}  Ba6 {[%clk 0:00:01]} 40. Ne5 {[%clk 0:01:18]}  Rd8 {[%clk 0:00:02]} 41. Nd7 {[%clk 0:01:17]}  Bb5 {[%clk 0:00:01]} 42. Nf6+ {[%clk 0:01:18]}  Kf8 {[%clk 0:00:02]} 43. Nxh7+ {[%clk 0:01:15]}  Kg8 {[%clk 0:00:02]} 44. Nf6+ {[%clk 0:01:16]}  Kf8 {[%clk 0:00:03]} 45. Nh3 {[%clk 0:01:14]}  Bc6 {[%clk 0:00:02]} 46. Nf4 {[%clk 0:01:11]}  Bxd5+ {[%clk 0:00:01]} 47. N6xd5 {[%clk 0:01:06]}  Ra8 {[%clk 0:00:02]} 48. Ne6+ {[%clk 0:01:06]}  Ke8 {[%clk 0:00:03]} 49. Nf6# {[%clk 0:01:06]} 1-0


[Site "https://www.chess.com"]

[Event "Titled Tuesday Blitz October 11 Late 2022"]
[White "Girsh, Daniel"]
[Black "Ambartsumova, Karina"]
[WhiteFideId "30949190"]
[BlackFideId "4166299"]
[WhiteElo "2075"]
[BlackElo "2299"]
[Result "1-0"]
[Round "07"]
[TimeControl "180+1"]
[Date "2022.10.12"]
[WhiteClock "0:00:12"]
[BlackClock "0:00:01"]

1. d4 {[%clk 0:03:00]}  Nf6 {[%clk 0:02:59]} 2. c4 {[%clk 0:03:01]}  g6 {[%clk 0:02:59]} 3. Nc3 {[%clk 0:03:01]}  Bg7 {[%clk 0:03:00]} 4. e4 {[%clk 0:03:01]}  O-O {[%clk 0:03:01]} 5. Be2 {[%clk 0:03:02]}  d6 {[%clk 0:03:01]} 6. Be3 {[%clk 0:03:03]}  e5 {[%clk 0:02:59]} 7. d5 {[%clk 0:03:03]}  Na6 {[%clk 0:02:59]} 8. h4 {[%clk 0:03:03]}  Nc5 {[%clk 0:02:58]} 9. Qc2 {[%clk 0:03:03]}  a5 {[%clk 0:02:50]} 10. h5 {[%clk 0:02:55]}  c6 {[%clk 0:02:50]} 11. O-O-O {[%clk 0:02:54]}  cxd5 {[%clk 0:02:50]} 12. cxd5 {[%clk 0:02:53]}  Bd7 {[%clk 0:02:13]} 13. Kb1 {[%clk 0:02:51]}  Ncxe4 {[%clk 0:02:05]} 14. Nxe4 {[%clk 0:02:42]}  Nxe4 {[%clk 0:02:05]} 15. Ka1 {[%clk 0:02:37]}  Nf6 {[%clk 0:02:01]} 16. hxg6 {[%clk 0:02:34]}  fxg6 {[%clk 0:01:59]} 17. Nf3 {[%clk 0:02:32]}  Bf5 {[%clk 0:01:51]} 18. Qb3 {[%clk 0:02:31]}  Qe7 {[%clk 0:01:42]} 19. Ng5 {[%clk 0:02:27]}  a4 {[%clk 0:01:36]} 20. Qb4 {[%clk 0:02:24]}  a3 {[%clk 0:01:35]} 21. b3 {[%clk 0:02:18]}  Rfd8 {[%clk 0:01:14]} 22. Bb6 {[%clk 0:02:12]}  Rdc8 {[%clk 0:01:08]} 23. Ne6 {[%clk 0:02:03]}  Bxe6 {[%clk 0:01:05]} 24. dxe6 {[%clk 0:02:04]}  Qxe6 {[%clk 0:00:46]} 25. Rxd6 {[%clk 0:01:56]}  Qf5 {[%clk 0:00:46]} 26. Bc4+ {[%clk 0:01:48]}  Kh8 {[%clk 0:00:46]} 27. Be3 {[%clk 0:01:25]}  Qc2 {[%clk 0:00:40]} 28. Rd2 {[%clk 0:01:20]}  Qf5 {[%clk 0:00:36]} 29. Qxb7 {[%clk 0:01:15]}  Ne8 {[%clk 0:00:22]} 30. Bh6 {[%clk 0:00:51]}  e4+ {[%clk 0:00:17]} 31. Bxg7+ {[%clk 0:00:50]}  Nxg7 {[%clk 0:00:17]} 32. Qd5 {[%clk 0:00:45]}  Qf6+ {[%clk 0:00:12]} 33. Qd4 {[%clk 0:00:45]}  Qxd4+ {[%clk 0:00:05]} 34. Rxd4 {[%clk 0:00:46]}  Rf8 {[%clk 0:00:06]} 35. Rxe4 {[%clk 0:00:39]}  Rxf2 {[%clk 0:00:05]} 36. Reh4 {[%clk 0:00:21]}  h5 {[%clk 0:00:05]} 37. g4 {[%clk 0:00:21]}  Rd8 {[%clk 0:00:04]} 38. gxh5 {[%clk 0:00:20]}  gxh5 {[%clk 0:00:04]} 39. b4 {[%clk 0:00:14]}  Rdd2 {[%clk 0:00:02]} 40. b5 {[%clk 0:00:14]}  Rd6 {[%clk 0:00:01]} 41. Kb1 {[%clk 0:00:12]} 1-0


[Site "https://www.chess.com"]

[Event "Titled Tuesday Blitz October 11 Late 2022"]
[White "Golubev, Mikhail"]
[Black "Petrova, Irina"]
[WhiteFideId "14100983"]
[BlackFideId "14124122"]
[WhiteElo "2374"]
[BlackElo "2023"]
[Result "1-0"]
[Round "07"]
[TimeControl "180+1"]
[Date "2022.10.12"]
[WhiteClock "0:00:08"]
[BlackClock "0:00:22"]

1. e4 {[%clk 0:03:00]}  d6 {[%clk 0:03:00]} 2. d4 {[%clk 0:02:59]}  Nf6 {[%clk 0:03:01]} 3. Nc3 {[%clk 0:02:59]}  e5 {[%clk 0:03:01]} 4. Nf3 {[%clk 0:02:59]}  Nbd7 {[%clk 0:03:01]} 5. Bc4 {[%clk 0:02:59]}  Be7 {[%clk 0:03:01]} 6. O-O {[%clk 0:02:58]}  O-O {[%clk 0:03:01]} 7. a4 {[%clk 0:02:57]}  c6 {[%clk 0:03:01]} 8. Re1 {[%clk 0:02:55]}  h6 {[%clk 0:03:01]} 9. h3 {[%clk 0:02:53]}  Re8 {[%clk 0:03:00]} 10. Be3 {[%clk 0:02:52]}  Bf8 {[%clk 0:03:00]} 11. Ba2 {[%clk 0:02:40]}  Qc7 {[%clk 0:02:53]} 12. Nh4 {[%clk 0:02:33]}  exd4 {[%clk 0:02:46]} 13. Bxd4 {[%clk 0:02:29]}  c5 {[%clk 0:02:15]} 14. Be3 {[%clk 0:02:10]}  Ne5 {[%clk 0:02:05]} 15. Nf3 {[%clk 0:02:08]}  Be6 {[%clk 0:01:56]} 16. Nxe5 {[%clk 0:01:57]}  dxe5 {[%clk 0:01:57]} 17. Bxe6 {[%clk 0:01:40]}  Rxe6 {[%clk 0:01:58]} 18. Nd5 {[%clk 0:01:40]}  Nxd5 {[%clk 0:01:53]} 19. exd5 {[%clk 0:01:37]}  Ree8 {[%clk 0:01:41]} 20. c4 {[%clk 0:01:24]}  f5 {[%clk 0:01:35]} 21. Qh5 {[%clk 0:01:24]}  Qf7 {[%clk 0:01:34]} 22. Qxf7+ {[%clk 0:01:23]}  Kxf7 {[%clk 0:01:35]} 23. f4 {[%clk 0:01:06]}  b6 {[%clk 0:01:27]} 24. b3 {[%clk 0:01:01]}  e4 {[%clk 0:01:26]} 25. g4 {[%clk 0:00:56]}  g6 {[%clk 0:01:26]} 26. Ra2 {[%clk 0:00:53]}  Bg7 {[%clk 0:01:23]} 27. Rg2 {[%clk 0:00:44]}  Bd4 {[%clk 0:01:19]} 28. Kf2 {[%clk 0:00:43]}  Bxe3+ {[%clk 0:01:13]} 29. Kxe3 {[%clk 0:00:42]}  Rg8 {[%clk 0:01:03]} 30. Reg1 {[%clk 0:00:41]}  Rae8 {[%clk 0:00:54]} 31. h4 {[%clk 0:00:40]}  Rd8 {[%clk 0:00:48]} 32. h5 {[%clk 0:00:29]}  gxh5 {[%clk 0:00:45]} 33. gxf5 {[%clk 0:00:25]}  Rxg2 {[%clk 0:00:44]} 34. Rxg2 {[%clk 0:00:26]}  Kf6 {[%clk 0:00:44]} 35. Rg6+ {[%clk 0:00:21]}  Kxf5 {[%clk 0:00:44]} 36. Rxh6 {[%clk 0:00:21]}  Kg4 {[%clk 0:00:26]} 37. Rg6+ {[%clk 0:00:21]}  Kh3 {[%clk 0:00:26]} 38. Kxe4 {[%clk 0:00:20]}  h4 {[%clk 0:00:26]} 39. d6 {[%clk 0:00:18]}  Kh2 {[%clk 0:00:26]} 40. Kd5 {[%clk 0:00:16]}  h3 {[%clk 0:00:26]} 41. Kc6 {[%clk 0:00:14]}  Kh1 {[%clk 0:00:25]} 42. d7 {[%clk 0:00:14]}  Rf8 {[%clk 0:00:24]} 43. Kc7 {[%clk 0:00:13]}  h2 {[%clk 0:00:23]} 44. d8=Q {[%clk 0:00:12]}  Rxd8 {[%clk 0:00:20]} 45. Kxd8 {[%clk 0:00:12]}  b5 {[%clk 0:00:21]} 46. cxb5 {[%clk 0:00:09]}  a6 {[%clk 0:00:21]} 47. bxa6 {[%clk 0:00:09]}  c4 {[%clk 0:00:21]} 48. a7 {[%clk 0:00:09]}  c3 {[%clk 0:00:22]} 49. a8=B# {[%clk 0:00:08]} 1-0


[Site "https://www.chess.com"]

[Event "Titled Tuesday Blitz October 11 Late 2022"]
[White "Gubajdullin, Alexei"]
[Black "Castella Garcia, Fausto"]
[WhiteFideId "4141202"]
[BlackFideId "3501922"]
[WhiteElo "2200"]
[BlackElo "2246"]
[Result "1-0"]
[Round "07"]
[TimeControl "180+1"]
[Date "2022.10.12"]
[WhiteClock "0:01:59"]
[BlackClock "0:00:21"]

1. d4 {[%clk 0:03:00]}  Nf6 {[%clk 0:02:58]} 2. Nf3 {[%clk 0:03:01]}  g6 {[%clk 0:02:58]} 3. Bf4 {[%clk 0:03:02]}  Bg7 {[%clk 0:02:57]} 4. e3 {[%clk 0:03:02]}  O-O {[%clk 0:02:56]} 5. Be2 {[%clk 0:03:03]}  d6 {[%clk 0:02:56]} 6. O-O {[%clk 0:03:03]}  Nfd7 {[%clk 0:02:57]} 7. h3 {[%clk 0:03:03]}  e5 {[%clk 0:02:57]} 8. Bh2 {[%clk 0:03:03]}  Nc6 {[%clk 0:02:56]} 9. c4 {[%clk 0:03:03]}  e4 {[%clk 0:02:52]} 10. Nfd2 {[%clk 0:03:02]}  f5 {[%clk 0:02:52]} 11. Nc3 {[%clk 0:03:02]}  Nf6 {[%clk 0:02:53]} 12. Qa4 {[%clk 0:02:56]}  g5 {[%clk 0:02:48]} 13. b4 {[%clk 0:02:55]}  Ne7 {[%clk 0:02:41]} 14. b5 {[%clk 0:02:54]}  Ng6 {[%clk 0:02:38]} 15. b6 {[%clk 0:02:54]}  cxb6 {[%clk 0:02:18]} 16. Qb4 {[%clk 0:02:54]}  Ne8 {[%clk 0:01:56]} 17. Nb5 {[%clk 0:02:52]}  Rf6 {[%clk 0:01:38]} 18. f3 {[%clk 0:02:43]}  exf3 {[%clk 0:01:34]} 19. Bxf3 {[%clk 0:02:42]}  Bf8 {[%clk 0:01:27]} 20. Qb3 {[%clk 0:02:29]}  a6 {[%clk 0:01:22]} 21. Nc3 {[%clk 0:02:28]}  Nh4 {[%clk 0:01:17]} 22. Nd5 {[%clk 0:02:23]}  Nxf3+ {[%clk 0:01:12]} 23. Rxf3 {[%clk 0:02:22]}  Rg6 {[%clk 0:01:10]} 24. Nxb6 {[%clk 0:02:20]}  Rb8 {[%clk 0:00:38]} 25. Nxc8 {[%clk 0:02:17]}  Rxc8 {[%clk 0:00:33]} 26. Rxf5 {[%clk 0:02:14]}  Qd7 {[%clk 0:00:30]} 27. Raf1 {[%clk 0:02:12]}  Ng7 {[%clk 0:00:28]} 28. Rf7 {[%clk 0:02:07]}  Qe6 {[%clk 0:00:23]} 29. d5 {[%clk 0:01:59]}  Qe8 {[%clk 0:00:21]} 30. Rxf8+ {[%clk 0:01:59]} 1-0


[Site "https://www.chess.com"]

[Event "Titled Tuesday Blitz October 11 Late 2022"]
[White "Hajiyev, Kanan"]
[Black "Vlassov, Nikolai"]
[WhiteFideId "13404148"]
[BlackFideId "4103360"]
[WhiteElo "2518"]
[BlackElo "2678"]
[Result "1-0"]
[Round "07"]
[TimeControl "180+1"]
[Date "2022.10.12"]
[WhiteClock "0:00:18"]
[BlackClock "0:00:05"]

1. d4 {[%clk 0:02:42]}  Nf6 {[%clk 0:02:59]} 2. Nf3 {[%clk 0:02:43]}  e6 {[%clk 0:02:59]} 3. c4 {[%clk 0:02:43]}  Nc6 {[%clk 0:02:59]} 4. Nc3 {[%clk 0:02:42]}  Bb4 {[%clk 0:02:59]} 5. Qb3 {[%clk 0:02:40]}  a5 {[%clk 0:02:59]} 6. a3 {[%clk 0:02:37]}  a4 {[%clk 0:02:59]} 7. Qc2 {[%clk 0:02:37]}  Bxc3+ {[%clk 0:02:58]} 8. Qxc3 {[%clk 0:02:38]}  d6 {[%clk 0:02:55]} 9. g3 {[%clk 0:02:33]}  Qe7 {[%clk 0:02:52]} 10. Bg2 {[%clk 0:02:33]}  e5 {[%clk 0:02:51]} 11. O-O {[%clk 0:02:31]}  Bg4 {[%clk 0:02:50]} 12. dxe5 {[%clk 0:02:27]}  dxe5 {[%clk 0:02:50]} 13. Bg5 {[%clk 0:02:18]}  O-O {[%clk 0:02:46]} 14. h3 {[%clk 0:02:17]}  Bh5 {[%clk 0:02:45]} 15. Rfd1 {[%clk 0:02:17]}  Rfd8 {[%clk 0:02:41]} 16. Qc2 {[%clk 0:02:12]}  Bg6 {[%clk 0:02:10]} 17. Rxd8+ {[%clk 0:02:11]}  Qxd8 {[%clk 0:02:09]} 18. Qd1 {[%clk 0:02:12]}  Qe7 {[%clk 0:01:57]} 19. Nh4 {[%clk 0:02:05]}  Nd4 {[%clk 0:01:46]} 20. Nxg6 {[%clk 0:02:03]}  hxg6 {[%clk 0:01:45]} 21. Bxb7 {[%clk 0:01:57]}  Rb8 {[%clk 0:01:45]} 22. Qxa4 {[%clk 0:01:51]}  Nxe2+ {[%clk 0:01:32]} 23. Kf1 {[%clk 0:01:52]}  Nd4 {[%clk 0:01:04]} 24. b4 {[%clk 0:01:51]}  Qe6 {[%clk 0:00:56]} 25. Bg2 {[%clk 0:01:10]}  Qxc4+ {[%clk 0:00:55]} 26. Kg1 {[%clk 0:01:10]}  c5 {[%clk 0:00:26]} 27. Qa7 {[%clk 0:01:01]}  Rc8 {[%clk 0:00:26]} 28. bxc5 {[%clk 0:00:44]}  Rxc5 {[%clk 0:00:22]} 29. Kh2 {[%clk 0:00:43]}  Rc7 {[%clk 0:00:17]} 30. Qb8+ {[%clk 0:00:39]}  Kh7 {[%clk 0:00:14]} 31. Rc1 {[%clk 0:00:38]}  Nc2 {[%clk 0:00:14]} 32. Bxf6 {[%clk 0:00:29]}  gxf6 {[%clk 0:00:13]} 33. Be4 {[%clk 0:00:29]}  Qe2 {[%clk 0:00:10]} 34. Qxc7 {[%clk 0:00:18]}  Qxf2+ {[%clk 0:00:10]} 35. Bg2 {[%clk 0:00:18]}  Ne3 {[%clk 0:00:06]} 36. Rg1 {[%clk 0:00:18]}  Kg7 {[%clk 0:00:05]} 37. a4 {[%clk 0:00:18]} 1-0


[Site "https://www.chess.com"]

[Event "Titled Tuesday Blitz October 11 Late 2022"]
[White "Ibadov, Dashgyn"]
[Black "Aguilar, Juan"]
[WhiteFideId "24107514"]
[BlackFideId "3800091"]
[WhiteElo "2208"]
[BlackElo "2390"]
[Result "0-1"]
[Round "07"]
[TimeControl "180+1"]
[Date "2022.10.12"]
[WhiteClock "0:00:04"]
[BlackClock "0:00:10"]

1. e4 {[%clk 0:03:00]}  c5 {[%clk 0:02:59]} 2. Nc3 {[%clk 0:02:58]}  a6 {[%clk 0:02:59]} 3. d4 {[%clk 0:02:56]}  cxd4 {[%clk 0:02:56]} 4. Qxd4 {[%clk 0:02:57]}  Nc6 {[%clk 0:02:55]} 5. Qd2 {[%clk 0:02:58]}  Nf6 {[%clk 0:02:54]} 6. b3 {[%clk 0:02:58]}  e6 {[%clk 0:02:41]} 7. Bb2 {[%clk 0:02:58]}  Bb4 {[%clk 0:02:39]} 8. f3 {[%clk 0:02:56]}  d5 {[%clk 0:02:39]} 9. a3 {[%clk 0:02:34]}  Bxc3 {[%clk 0:02:27]} 10. Bxc3 {[%clk 0:02:19]}  dxe4 {[%clk 0:02:02]} 11. Qg5 {[%clk 0:02:18]}  Nd5 {[%clk 0:01:46]} 12. Qxg7 {[%clk 0:02:14]}  Rf8 {[%clk 0:01:12]} 13. O-O-O {[%clk 0:02:13]}  Qb6 {[%clk 0:00:52]} 14. fxe4 {[%clk 0:01:45]}  Nxc3 {[%clk 0:00:50]} 15. Qxc3 {[%clk 0:01:45]}  Bd7 {[%clk 0:00:50]} 16. Nf3 {[%clk 0:01:39]}  O-O-O {[%clk 0:00:49]} 17. e5 {[%clk 0:01:28]}  Kb8 {[%clk 0:00:49]} 18. Kb2 {[%clk 0:01:21]}  Bc8 {[%clk 0:00:42]} 19. Bd3 {[%clk 0:01:19]}  h6 {[%clk 0:00:40]} 20. Be4 {[%clk 0:01:18]}  Ne7 {[%clk 0:00:36]} 21. a4 {[%clk 0:01:02]}  Rg8 {[%clk 0:00:35]} 22. g3 {[%clk 0:00:55]}  Ng6 {[%clk 0:00:24]} 23. a5 {[%clk 0:00:51]}  Qc7 {[%clk 0:00:24]} 24. Qxc7+ {[%clk 0:00:18]}  Kxc7 {[%clk 0:00:24]} 25. c4 {[%clk 0:00:16]}  Bd7 {[%clk 0:00:24]} 26. Kc3 {[%clk 0:00:12]}  Bc6 {[%clk 0:00:19]} 27. Bxc6 {[%clk 0:00:11]}  Kxc6 {[%clk 0:00:19]} 28. Rhf1 {[%clk 0:00:08]}  Rxd1 {[%clk 0:00:18]} 29. Rxd1 {[%clk 0:00:08]}  Kc7 {[%clk 0:00:17]} 30. b4 {[%clk 0:00:07]}  h5 {[%clk 0:00:15]} 31. b5 {[%clk 0:00:05]}  h4 {[%clk 0:00:12]} 32. b6+ {[%clk 0:00:05]}  Kc8 {[%clk 0:00:11]} 33. c5 {[%clk 0:00:05]}  hxg3 {[%clk 0:00:11]} 34. hxg3 {[%clk 0:00:06]}  Ne7 {[%clk 0:00:12]} 35. Kc4 {[%clk 0:00:03]}  Rxg3 {[%clk 0:00:11]} 36. Nd4 {[%clk 0:00:03]}  Rg4 {[%clk 0:00:11]} 37. Rh1 {[%clk 0:00:04]}  Ng6 {[%clk 0:00:10]} 38. Rh8+ {[%clk 0:00:04]}  Nxh8 {[%clk 0:00:10]} 0-1


[Site "https://www.chess.com"]

[Event "Titled Tuesday Blitz October 11 Late 2022"]
[White "Iliaguev, Nisim"]
[Black "Principe, Gerson"]
[WhiteFideId "2817276"]
[BlackFideId "3804550"]
[WhiteElo "2264"]
[BlackElo "2280"]
[Result "1-0"]
[Round "07"]
[TimeControl "180+1"]
[Date "2022.10.11"]
[WhiteClock "0:01:04"]
[BlackClock "0:00:08"]

1. d4 {[%clk 0:03:00]}  Nf6 {[%clk 0:02:59]} 2. g3 {[%clk 0:03:01]}  e6 {[%clk 0:02:56]} 3. Bg2 {[%clk 0:03:01]}  d5 {[%clk 0:02:56]} 4. Nf3 {[%clk 0:03:01]}  b6 {[%clk 0:02:55]} 5. O-O {[%clk 0:03:02]}  Bb7 {[%clk 0:02:56]} 6. c4 {[%clk 0:03:02]}  Be7 {[%clk 0:02:56]} 7. Ne5 {[%clk 0:03:03]}  O-O {[%clk 0:02:55]} 8. Nc3 {[%clk 0:03:04]}  c5 {[%clk 0:02:51]} 9. dxc5 {[%clk 0:03:04]}  bxc5 {[%clk 0:02:49]} 10. cxd5 {[%clk 0:03:04]}  exd5 {[%clk 0:02:49]} 11. Bg5 {[%clk 0:03:03]}  Nbd7 {[%clk 0:02:42]} 12. Nxd7 {[%clk 0:02:57]}  Qxd7 {[%clk 0:02:40]} 13. Bxf6 {[%clk 0:02:52]}  Bxf6 {[%clk 0:02:39]} 14. Nxd5 {[%clk 0:02:52]}  Bxd5 {[%clk 0:02:36]} 15. Bxd5 {[%clk 0:02:52]}  Rab8 {[%clk 0:02:04]} 16. Rc1 {[%clk 0:02:44]}  Rfd8 {[%clk 0:01:40]} 17. Bb3 {[%clk 0:02:11]}  Bxb2 {[%clk 0:01:01]} 18. Qxd7 {[%clk 0:02:08]}  Rxd7 {[%clk 0:01:01]} 19. Rxc5 {[%clk 0:02:09]}  g6 {[%clk 0:00:53]} 20. Kg2 {[%clk 0:02:07]}  Rbd8 {[%clk 0:00:50]} 21. e3 {[%clk 0:02:03]}  Kg7 {[%clk 0:00:49]} 22. h4 {[%clk 0:02:01]}  h5 {[%clk 0:00:49]} 23. Rb1 {[%clk 0:01:59]}  Ba3 {[%clk 0:00:45]} 24. Ra5 {[%clk 0:01:51]}  Bb4 {[%clk 0:00:45]} 25. Rb5 {[%clk 0:01:47]}  Bd6 {[%clk 0:00:39]} 26. Rc1 {[%clk 0:01:32]}  Bc7 {[%clk 0:00:32]} 27. a4 {[%clk 0:01:24]}  Bd6 {[%clk 0:00:29]} 28. Rc6 {[%clk 0:01:22]}  Be7 {[%clk 0:00:23]} 29. a5 {[%clk 0:01:19]}  Rd2 {[%clk 0:00:19]} 30. a6 {[%clk 0:01:15]}  R8d7 {[%clk 0:00:15]} 31. Rc2 {[%clk 0:01:05]}  Rxc2 {[%clk 0:00:14]} 32. Bxc2 {[%clk 0:01:06]}  Rd8 {[%clk 0:00:09]} 33. Rb7 {[%clk 0:01:03]}  Bc5 {[%clk 0:00:09]} 34. Bb3 {[%clk 0:01:04]}  Rf8 {[%clk 0:00:09]} 35. Bd5 {[%clk 0:01:03]}  Bb6 {[%clk 0:00:09]} 36. Rxb6 {[%clk 0:01:03]}  axb6 {[%clk 0:00:08]} 37. a7 {[%clk 0:01:04]} 1-0


[Site "https://www.chess.com"]

[Event "Titled Tuesday Blitz October 11 Late 2022"]
[White "Indjic, Aleksandar"]
[Black "Matinian, Nikita"]
[WhiteFideId "911925"]
[BlackFideId "24129100"]
[WhiteElo "2592"]
[BlackElo "2422"]
[Result "1-0"]
[Round "07"]
[TimeControl "180+1"]
[Date "2022.10.11"]
[WhiteClock "0:00:48"]
[BlackClock "0:00:09"]

1. d4 {[%clk 0:03:00]}  Nf6 {[%clk 0:03:00]} 2. c4 {[%clk 0:03:01]}  g6 {[%clk 0:03:00]} 3. Nc3 {[%clk 0:03:01]}  Bg7 {[%clk 0:03:00]} 4. e4 {[%clk 0:03:01]}  d6 {[%clk 0:03:00]} 5. Nf3 {[%clk 0:03:01]}  O-O {[%clk 0:03:00]} 6. Be2 {[%clk 0:03:01]}  Nc6 {[%clk 0:03:00]} 7. d5 {[%clk 0:02:58]}  Nb8 {[%clk 0:03:00]} 8. Bg5 {[%clk 0:02:50]}  h6 {[%clk 0:02:57]} 9. Be3 {[%clk 0:02:44]}  c5 {[%clk 0:02:55]} 10. Nd2 {[%clk 0:02:40]}  a6 {[%clk 0:02:54]} 11. a4 {[%clk 0:02:39]}  a5 {[%clk 0:02:53]} 12. g4 {[%clk 0:02:37]}  Na6 {[%clk 0:02:53]} 13. h4 {[%clk 0:02:36]}  Nh7 {[%clk 0:02:40]} 14. f4 {[%clk 0:02:33]}  Nb4 {[%clk 0:02:40]} 15. f5 {[%clk 0:02:09]}  Re8 {[%clk 0:02:26]} 16. Nf3 {[%clk 0:02:06]}  gxf5 {[%clk 0:01:56]} 17. gxf5 {[%clk 0:02:05]}  Kh8 {[%clk 0:01:55]} 18. Ng5 {[%clk 0:01:21]}  hxg5 {[%clk 0:01:49]} 19. hxg5 {[%clk 0:01:22]}  e6 {[%clk 0:01:40]} 20. f6 {[%clk 0:01:14]}  Bxf6 {[%clk 0:01:33]} 21. gxf6 {[%clk 0:01:13]}  Qxf6 {[%clk 0:01:33]} 22. Kd2 {[%clk 0:01:13]}  exd5 {[%clk 0:01:29]} 23. Rxh7+ {[%clk 0:01:11]}  Kxh7 {[%clk 0:01:29]} 24. Qh1+ {[%clk 0:01:11]}  Kg8 {[%clk 0:01:29]} 25. Rf1 {[%clk 0:01:10]}  Qe5 {[%clk 0:01:01]} 26. cxd5 {[%clk 0:00:54]}  Bd7 {[%clk 0:00:54]} 27. Qh4 {[%clk 0:00:50]}  Rac8 {[%clk 0:00:09]} 28. Rg1+ {[%clk 0:00:48]} 1-0


[Site "https://www.chess.com"]